fUSD/lending_fUSD_20260622
["ID","MTS","AMOUNT","RATE_DAILY","PERIOD"]
[426052725,1782131539000,-2000.0,0.00029041,2]
[426052739,1782131539000,-591.59,0.00029041,2]
[426052729,1782131539000,-500.0,0.00029041,2]
[426052728,1782131539000,-687.7,0.00029041,2]
[426052730,1782131539000,-3373.56,0.00029041,2]
[426052731,1782131539000,-570.0,0.00029041,2]
[426052732,1782131539000,-713.2,0.00029041,2]
[426052735,1782131539000,-500.0,0.00029041,2]
[426052733,1782131539000,-685.72,0.00029041,2]
[426052747,1782131539000,-500.0,0.00029041,2]
[426052734,1782131539000,-500.0,0.00029041,2]
[426052737,1782131539000,-228.4,0.00029041,2]
[426052738,1782131539000,-557.86,0.00029041,2]
[426052740,1782131539000,-1010.5,0.00029041,2]
[426052752,1782131539000,-500.0,0.00029041,2]
[426052744,1782131539000,-1413.15,0.00029041,2]
[426052742,1782131539000,-500.0,0.00029041,2]
[426052746,1782131539000,-657.57,0.00029041,2]
[426052751,1782131539000,-500.0,0.00029041,2]
[426052750,1782131539000,-500.0,0.00029041,2]
[426052748,1782131539000,-500.0,0.00029041,2]
[426052745,1782131539000,-7121.05,0.00029041,2]
[426052743,1782131539000,-500.0,0.00029041,2]
[426052736,1782131539000,-500.0,0.00029041,2]
[426052781,1782131539000,-8686.62,0.00029041,2]
[426052786,1782131539000,-155.1,0.00029041,2]
[426052785,1782131539000,-500.0,0.00029041,2]
[426052816,1782131539000,-1281.85,0.00029041,2]
[426052814,1782131539000,-554.0,0.00029041,2]
[426052815,1782131539000,-500.0,0.00029041,2]
[426052818,1782131539000,-500.0,0.00029041,2]
[426052820,1782131539000,-777.53,0.00029041,2]
[426052822,1782131539000,-500.0,0.00029041,2]
[426052817,1782131539000,-500.0,0.00029041,2]
[426052821,1782131539000,-805.85,0.00029041,2]
[426052819,1782131539000,-537.51,0.00029041,2]
[426052823,1782131539000,-500.0,0.00029041,2]
[426052825,1782131539000,-500.0,0.00029041,2]
[426052824,1782131539000,-879.74,0.00029041,2]
[426052813,1782131539000,-781.2,0.00029041,2]
[426052827,1782131539000,-948.85,0.00029041,2]
[426052828,1782131539000,-500.0,0.00029041,2]
[426052829,1782131539000,-500.0,0.00029041,2]
[426052832,1782131539000,-984.2,0.00029041,2]
[426052834,1782131539000,-500.0,0.00029041,2]
[426052831,1782131539000,-500.0,0.00029041,2]
[426052830,1782131539000,-500.0,0.00029041,2]
[426052833,1782131539000,-500.0,0.00029041,2]
[426052835,1782131539000,-587.25,0.00029041,2]
[426052841,1782131539000,-277.76,0.000291,2]
[426052837,1782131539000,-353.16,0.00029052,7]
[426052840,1782131539000,-92846.86,0.000291,2]
[426052838,1782131539000,-170.02,0.00029085,3]
[426052826,1782131539000,-1013.21,0.00029041,2]
[426052810,1782131539000,-895.47,0.00029041,2]
[426052839,1782131539000,-37055.71,0.000291,2]
[426052809,1782131539000,-513.61,0.00029041,2]
[426052808,1782131539000,-500.0,0.00029041,2]
[426052836,1782131539000,-351.9,0.00029051,7]
[426052784,1782131539000,-500.0,0.00029041,2]
[426052782,1782131539000,-919.77,0.00029041,2]
[426052783,1782131539000,-500.0,0.00029041,2]
[426052788,1782131539000,-244.2,0.00029041,2]
[426052792,1782131539000,-844.33,0.00029041,2]
[426052789,1782131539000,-5625.93,0.00029041,2]
[426052790,1782131539000,-500.0,0.00029041,2]
[426052800,1782131539000,-729.92,0.00029041,2]
[426052791,1782131539000,-775.18,0.00029041,2]
[426052799,1782131539000,-500.0,0.00029041,2]
[426052795,1782131539000,-500.0,0.00029041,2]
[426052787,1782131539000,-500.0,0.00029041,2]
[426052793,1782131539000,-500.0,0.00029041,2]
[426052798,1782131539000,-912.76,0.00029041,2]
[426052811,1782131539000,-500.0,0.00029041,2]
[426052804,1782131539000,-500.0,0.00029041,2]
[426052805,1782131539000,-500.0,0.00029041,2]
[426052812,1782131539000,-500.0,0.00029041,2]
[426052806,1782131539000,-500.0,0.00029041,2]
[426052807,1782131539000,-500.0,0.00029041,2]
[426052801,1782131539000,-2905.9,0.00029041,2]
[426052802,1782131539000,-2044.4,0.00029041,2]
[426052794,1782131539000,-500.0,0.00029041,2]
[426052797,1782131539000,-1087.5,0.00029041,2]
[426052796,1782131539000,-500.0,0.00029041,2]
[426052803,1782131539000,-4175.97,0.00029041,2]
[426052879,1782131540000,-633.7,0.00029315,2]
[426052876,1782131540000,-500.0,0.00029315,2]
[426052884,1782131540000,-1724.88,0.00029315,2]
[426052881,1782131540000,-947.67,0.00029315,2]
[426052875,1782131540000,-500.0,0.00029315,2]
[426052873,1782131540000,-585.84,0.00029315,2]
[426052877,1782131540000,-680.9,0.00029315,2]
[426052874,1782131540000,-500.0,0.00029315,2]
[426052869,1782131540000,-561.83246014,0.00029314,2]
[426052880,1782131540000,-513.94,0.00029315,2]
[426052883,1782131540000,-500.0,0.00029315,2]
[426052886,1782131540000,-539.78,0.00029315,2]
[426052882,1782131540000,-500.0,0.00029315,2]
[426052885,1782131540000,-500.0,0.00029315,2]
[426052891,1782131540000,-500.0,0.00029315,2]
[426052894,1782131540000,-500.0,0.00029315,2]
[426052870,1782131540000,-561.83246014,0.00029314,2]
[426052889,1782131540000,-1276.25,0.00029315,2]
[426052892,1782131540000,-337.8,0.00029315,2]
[426052888,1782131540000,-500.0,0.00029315,2]
[426052887,1782131540000,-500.0,0.00029315,2]
[426052893,1782131540000,-500.0,0.00029315,2]
[426052890,1782131540000,-500.0,0.00029315,2]
[426052895,1782131540000,-666.68,0.00029315,2]
[426052878,1782131540000,-970.83,0.00029315,2]
[426052866,1782131540000,-561.83246015,0.00029314,2]
[426052864,1782131540000,-618.98,0.000293,2]
[426052865,1782131540000,-13570.52,0.000293,2]
[426052896,1782131540000,-500.0,0.00029315,2]
[426052846,1782131540000,-353.16,0.00029112,30]
[426052843,1782131540000,-642.64,0.00029109,2]
[426052845,1782131540000,-351.9,0.00029111,30]
[426052844,1782131540000,-1026.81,0.00029109,30]
[426052842,1782131540000,-644.33,0.00029106,2]
[426052847,1782131540000,-203.72065036,0.0002913,20]
[426052849,1782131540000,-351.9,0.00029172,2]
[426052852,1782131540000,-36773.74,0.000292,2]
[426052859,1782131540000,-928.72,0.00029242,2]
[426052848,1782131540000,-329.8884998,0.0002913,5]
[426052850,1782131540000,-353.16,0.00029172,2]
[426052851,1782131540000,-350.0,0.00029188,5]
[426052853,1782131540000,-5023.3,0.000292,2]
[426052856,1782131540000,-353.22,0.00029232,7]
[426052855,1782131540000,-352.09,0.00029232,7]
[426052854,1782131540000,-1026.81,0.00029218,30]
[426052858,1782131540000,-1285.07,0.0002924,2]
[426052860,1782131540000,-785.0,0.00029248,2]
[426052863,1782131540000,-3927.94,0.000293,2]
[426052861,1782131540000,-152.0,0.00029296,7]
[426052867,1782131540000,-561.83246015,0.00029314,2]
[426052862,1782131540000,-198.56,0.000293,2]
[426052872,1782131540000,-819.26,0.00029315,2]
[426052871,1782131540000,-530.352991,0.00029315,2]
[426052868,1782131540000,-561.83246015,0.00029314,2]
[426052857,1782131540000,-285.84,0.0002924,2]
[426052897,1782131540000,-2673.46,0.00029315,2]
[426052901,1782131540000,-695.0,0.00029315,2]
[426052928,1782131540000,-586.89,0.00029315,2]
[426052935,1782131540000,-500.0,0.00029315,2]
[426052939,1782131540000,-562.32,0.00029315,2]
[426052933,1782131540000,-1404.94,0.00029315,2]
[426052934,1782131540000,-1137.32,0.00029315,2]
[426052930,1782131540000,-614.75,0.00029315,2]
[426052931,1782131540000,-500.0,0.00029315,2]
[426052929,1782131540000,-500.0,0.00029315,2]
[426052937,1782131540000,-688.82,0.00029315,2]
[426052936,1782131540000,-500.0,0.00029315,2]
[426052941,1782131540000,-467.99306803,0.00029315,2]
[426052943,1782131540000,-500.0,0.00029315,2]
[426052946,1782131540000,-500.0,0.00029315,2]
[426052942,1782131540000,-500.0,0.00029315,2]
[426052944,1782131540000,-500.0,0.00029315,2]
[426052947,1782131540000,-807.35,0.00029315,2]
[426052945,1782131540000,-500.0,0.00029315,2]
[426052949,1782131540000,-500.0,0.00029315,2]
[426052950,1782131540000,-528.44,0.00029315,2]
[426052948,1782131540000,-721.3,0.00029315,2]
[426052952,1782131540000,-299.42441731,0.00029315,2]
[426052951,1782131540000,-678.94,0.00029315,2]
[426052953,1782131540000,-548.4583272,0.00029315,2]
[426052954,1782131540000,-510.72724086,0.00029315,2]
[426052903,1782131540000,-500.0,0.00029315,2]
[426052932,1782131540000,-500.0,0.00029315,2]
[426052938,1782131540000,-515.21,0.00029315,2]
[426052940,1782131540000,-500.0,0.00029315,2]
[426052920,1782131540000,-714.12,0.00029315,2]
[426052902,1782131540000,-500.0,0.00029315,2]
[426052923,1782131540000,-520.65502962,0.00029315,2]
[426052900,1782131540000,-755.16,0.00029315,2]
[426052898,1782131540000,-500.0,0.00029315,2]
[426052904,1782131540000,-500.51,0.00029315,2]
[426052899,1782131540000,-500.0,0.00029315,2]
[426052905,1782131540000,-500.0,0.00029315,2]
[426052907,1782131540000,-1180.24,0.00029315,2]
[426052908,1782131540000,-500.0,0.00029315,2]
[426052909,1782131540000,-661.35,0.00029315,2]
[426052906,1782131540000,-557.46,0.00029315,2]
[426052911,1782131540000,-983.84,0.00029315,2]
[426052912,1782131540000,-500.0,0.00029315,2]
[426052910,1782131540000,-739.37,0.00029315,2]
[426052925,1782131540000,-500.0,0.00029315,2]
[426052913,1782131540000,-363.16010954,0.00029315,2]
[426052916,1782131540000,-500.0,0.00029315,2]
[426052914,1782131540000,-500.0,0.00029315,2]
[426052922,1782131540000,-500.0,0.00029315,2]
[426052924,1782131540000,-500.0,0.00029315,2]
[426052918,1782131540000,-500.0,0.00029315,2]
[426052927,1782131540000,-511.5,0.00029315,2]
[426052921,1782131540000,-554.72,0.00029315,2]
[426052926,1782131540000,-506.5287331,0.00029315,2]
[426052915,1782131540000,-327.75199661,0.00029315,2]
[426052917,1782131540000,-500.0,0.00029315,2]
[426052919,1782131540000,-500.0,0.00029315,2]
[426052996,1782131541000,-670.91,0.00029315,2]
[426052991,1782131541000,-936.99,0.00029315,2]
[426052987,1782131541000,-500.0,0.00029315,2]
[426052993,1782131541000,-500.0,0.00029315,2]
[426052995,1782131541000,-786.59,0.00029315,2]
[426052994,1782131541000,-1046.3,0.00029315,2]
[426052988,1782131541000,-500.0,0.00029315,2]
[426052990,1782131541000,-1501.08,0.00029315,2]
[426052986,1782131541000,-523.74,0.00029315,2]
[426052989,1782131541000,-500.0,0.00029315,2]
[426052998,1782131541000,-500.0,0.00029315,2]
[426052992,1782131541000,-500.0,0.00029315,2]
[426053008,1782131541000,-790.07,0.00029315,2]
[426053011,1782131541000,-790.49,0.00029315,2]
[426053010,1782131541000,-834.64,0.00029315,2]
[426052997,1782131541000,-540.55,0.00029315,2]
[426053000,1782131541000,-500.0,0.00029315,2]
[426053003,1782131541000,-500.0,0.00029315,2]
[426053004,1782131541000,-500.0,0.00029315,2]
[426052999,1782131541000,-554.01,0.00029315,2]
[426053005,1782131541000,-500.0,0.00029315,2]
[426053001,1782131541000,-718.0,0.00029315,2]
[426053002,1782131541000,-267.46889622,0.00029315,2]
[426053006,1782131541000,-500.0,0.00029315,2]
[426053007,1782131541000,-666.78,0.00029315,2]
[426053014,1782131541000,-853.2,0.00029315,2]
[426052985,1782131541000,-500.0,0.00029315,2]
[426053009,1782131541000,-504.09,0.00029315,2]
[426052983,1782131541000,-500.0,0.00029315,2]
[426052958,1782131541000,-548.72,0.00029315,2]
[426052981,1782131541000,-584.59,0.00029315,2]
[426052959,1782131541000,-500.0,0.00029315,2]
[426052956,1782131541000,-593.04,0.00029315,2]
[426052960,1782131541000,-691.46,0.00029315,2]
[426052957,1782131541000,-1181.38,0.00029315,2]
[426052955,1782131541000,-501.54,0.00029315,2]
[426052961,1782131541000,-725.12,0.00029315,2]
[426052964,1782131541000,-1255.65,0.00029315,2]
[426052968,1782131541000,-531.43,0.00029315,2]
[426052966,1782131541000,-500.0,0.00029315,2]
[426052963,1782131541000,-500.0,0.00029315,2]
[426052969,1782131541000,-703.04,0.00029315,2]
[426052965,1782131541000,-500.0,0.00029315,2]
[426052970,1782131541000,-617.49,0.00029315,2]
[426052971,1782131541000,-1040.83,0.00029315,2]
[426052962,1782131541000,-500.0,0.00029315,2]
[426052967,1782131541000,-500.0,0.00029315,2]
[426052972,1782131541000,-944.23,0.00029315,2]
[426052974,1782131541000,-500.0,0.00029315,2]
[426052984,1782131541000,-500.0,0.00029315,2]
[426052973,1782131541000,-500.0,0.00029315,2]
[426052975,1782131541000,-500.0,0.00029315,2]
[426052978,1782131541000,-500.0,0.00029315,2]
[426052977,1782131541000,-856.58,0.00029315,2]
[426052982,1782131541000,-608.59,0.00029315,2]
[426052976,1782131541000,-500.0,0.00029315,2]
[426053016,1782131541000,-186.92,0.00029315,2]
[426052979,1782131541000,-850.25,0.00029315,2]
[426052980,1782131541000,-500.0,0.00029315,2]
[426053019,1782131541000,-500.0,0.00029315,2]
[426053060,1782131541000,-500.0,0.00029315,2]
[426053018,1782131541000,-900.89,0.00029315,2]
[426053050,1782131541000,-500.0,0.00029315,2]
[426053049,1782131541000,-879.63,0.00029315,2]
[426053052,1782131541000,-500.0,0.00029315,2]
[426053055,1782131541000,-500.0,0.00029315,2]
[426053056,1782131541000,-500.0,0.00029315,2]
[426053051,1782131541000,-337.48454311,0.00029315,2]
[426053059,1782131541000,-869.96,0.00029315,2]
[426053057,1782131541000,-500.0,0.00029315,2]
[426053054,1782131541000,-500.0,0.00029315,2]
[426053053,1782131541000,-4029.46,0.00029315,2]
[426053058,1782131541000,-739.67,0.00029315,2]
[426053061,1782131541000,-635.95,0.00029315,2]
[426053063,1782131541000,-500.0,0.00029315,2]
[426053064,1782131541000,-500.0,0.00029315,2]
[426053072,1782131541000,-500.0,0.00029315,2]
[426053062,1782131541000,-500.0,0.00029315,2]
[426053067,1782131541000,-500.0,0.00029315,2]
[426053066,1782131541000,-501.26,0.00029315,2]
[426053069,1782131541000,-758.34,0.00029315,2]
[426053068,1782131541000,-405.84,0.00029315,2]
[426053071,1782131541000,-500.0,0.00029315,2]
[426053070,1782131541000,-500.0,0.00029315,2]
[426053074,1782131541000,-500.0,0.00029315,2]
[426053073,1782131541000,-500.0,0.00029315,2]
[426053075,1782131541000,-940.86,0.00029315,2]
[426053076,1782131541000,-170.89014766,0.00029315,2]
[426053015,1782131541000,-564.32,0.00029315,2]
[426053047,1782131541000,-500.0,0.00029315,2]
[426053044,1782131541000,-740.41,0.00029315,2]
[426053065,1782131541000,-500.0,0.00029315,2]
[426053045,1782131541000,-689.12,0.00029315,2]
[426053046,1782131541000,-3364.63,0.00029315,2]
[426053012,1782131541000,-510.33,0.00029315,2]
[426053022,1782131541000,-500.0,0.00029315,2]
[426053017,1782131541000,-500.0,0.00029315,2]
[426053021,1782131541000,-500.0,0.00029315,2]
[426053013,1782131541000,-278.58077563,0.00029315,2]
[426053020,1782131541000,-500.0,0.00029315,2]
[426053025,1782131541000,-715.39,0.00029315,2]
[426053024,1782131541000,-500.0,0.00029315,2]
[426053035,1782131541000,-500.0,0.00029315,2]
[426053036,1782131541000,-1250.12,0.00029315,2]
[426053026,1782131541000,-636.73,0.00029315,2]
[426053033,1782131541000,-500.0,0.00029315,2]
[426053032,1782131541000,-500.0,0.00029315,2]
[426053023,1782131541000,-500.0,0.00029315,2]
[426053028,1782131541000,-992.54,0.00029315,2]
[426053048,1782131541000,-500.0,0.00029315,2]
[426053027,1782131541000,-702.96,0.00029315,2]
[426053041,1782131541000,-788.02,0.00029315,2]
[426053038,1782131541000,-500.0,0.00029315,2]
[426053040,1782131541000,-577.94,0.00029315,2]
[426053042,1782131541000,-521.74,0.00029315,2]
[426053039,1782131541000,-1069.93,0.00029315,2]
[426053043,1782131541000,-500.0,0.00029315,2]
[426053037,1782131541000,-858.12,0.00029315,2]
[426053034,1782131541000,-524.23,0.00029315,2]
[426053031,1782131541000,-947.18,0.00029315,2]
[426053029,1782131541000,-617.25,0.00029315,2]
[426053030,1782131541000,-500.0,0.00029315,2]
[426053100,1782131542000,-986.53,0.00029315,2]
[426053104,1782131542000,-500.0,0.00029315,2]
[426053099,1782131542000,-526.09,0.00029315,2]
[426053103,1782131542000,-500.0,0.00029315,2]
[426053102,1782131542000,-626.35704622,0.00029315,2]
[426053101,1782131542000,-590.33,0.00029315,2]
[426053098,1782131542000,-541.49,0.00029315,2]
[426053106,1782131542000,-500.0,0.00029315,2]
[426053115,1782131542000,-846.46,0.00029315,2]
[426053107,1782131542000,-694.68,0.00029315,2]
[426053109,1782131542000,-500.0,0.00029315,2]
[426053110,1782131542000,-696.96,0.00029315,2]
[426053112,1782131542000,-500.0,0.00029315,2]
[426053113,1782131542000,-500.0,0.00029315,2]
[426053096,1782131542000,-500.0,0.00029315,2]
[426053108,1782131542000,-500.0,0.00029315,2]
[426053105,1782131542000,-1014.22,0.00029315,2]
[426053097,1782131542000,-945.27,0.00029315,2]
[426053080,1782131542000,-500.0,0.00029315,2]
[426053091,1782131542000,-636.07,0.00029315,2]
[426053118,1782131542000,-332.61560527,0.00029315,2]
[426053084,1782131542000,-784.71,0.00029315,2]
[426053083,1782131542000,-157.00459398,0.00029315,2]
[426053082,1782131542000,-383.04,0.00029315,2]
[426053077,1782131542000,-873.39,0.00029315,2]
[426053078,1782131542000,-500.0,0.00029315,2]
[426053081,1782131542000,-500.0,0.00029315,2]
[426053079,1782131542000,-500.0,0.00029315,2]
[426053085,1782131542000,-1443.16,0.00029315,2]
[426053095,1782131542000,-500.0,0.00029315,2]
[426053093,1782131542000,-500.0,0.00029315,2]
[426053088,1782131542000,-3639.77,0.00029315,2]
[426053089,1782131542000,-500.0,0.00029315,2]
[426053087,1782131542000,-600.74,0.00029315,2]
[426053094,1782131542000,-700.32,0.00029315,2]
[426053092,1782131542000,-510.38,0.00029315,2]
[426053086,1782131542000,-500.0,0.00029315,2]
[426053090,1782131542000,-1050.73,0.00029315,2]
[426053117,1782131542000,-928.29,0.00029315,2]
[426053122,1782131542000,-571.32,0.00029315,2]
[426053114,1782131542000,-500.0,0.00029315,2]
[426053137,1782131542000,-739.97,0.00029315,2]
[426053141,1782131542000,-500.0,0.00029315,2]
[426053142,1782131542000,-500.0,0.00029315,2]
[426053144,1782131542000,-613.2284286,0.00029315,2]
[426053145,1782131542000,-816.43,0.00029315,2]
[426053147,1782131542000,-558.4,0.00029315,2]
[426053148,1782131542000,-500.0,0.00029315,2]
[426053149,1782131542000,-500.0,0.00029315,2]
[426053146,1782131542000,-500.0,0.00029315,2]
[426053151,1782131542000,-827.96,0.00029315,2]
[426053150,1782131542000,-1352.1,0.00029315,2]
[426053152,1782131542000,-1369.37,0.00029315,2]
[426053153,1782131542000,-500.0,0.00029315,2]
[426053155,1782131542000,-500.0,0.00029315,2]
[426053154,1782131542000,-500.0,0.00029315,2]
[426053111,1782131542000,-500.0,0.00029315,2]
[426053156,1782131542000,-500.0,0.00029315,2]
[426053136,1782131542000,-500.0,0.00029315,2]
[426053139,1782131542000,-505.47939316,0.00029315,2]
[426053143,1782131542000,-905.07,0.00029315,2]
[426053140,1782131542000,-500.0,0.00029315,2]
[426053116,1782131542000,-500.0,0.00029315,2]
[426053120,1782131542000,-500.0,0.00029315,2]
[426053133,1782131542000,-500.0,0.00029315,2]
[426053130,1782131542000,-500.0,0.00029315,2]
[426053131,1782131542000,-500.0,0.00029315,2]
[426053119,1782131542000,-500.0,0.00029315,2]
[426053123,1782131542000,-500.0,0.00029315,2]
[426053125,1782131542000,-562.61,0.00029315,2]
[426053129,1782131542000,-559.62,0.00029315,2]
[426053121,1782131542000,-219.0,0.00029315,2]
[426053128,1782131542000,-500.0,0.00029315,2]
[426053127,1782131542000,-739.97,0.00029315,2]
[426053124,1782131542000,-700.09,0.00029315,2]
[426053135,1782131542000,-500.0,0.00029315,2]
[426053132,1782131542000,-500.0,0.00029315,2]
[426053138,1782131542000,-3267.88,0.00029315,2]
[426053134,1782131542000,-500.0,0.00029315,2]
[426053126,1782131542000,-514.88,0.00029315,2]
[426053175,1782131543000,-500.0,0.00029315,2]
[426053176,1782131543000,-500.0,0.00029315,2]
[426053184,1782131543000,-500.0,0.00029315,2]
[426053177,1782131543000,-347.29489838,0.00029315,2]
[426053183,1782131543000,-371.48,0.00029315,2]
[426053191,1782131543000,-500.0,0.00029315,2]
[426053190,1782131543000,-500.0,0.00029315,2]
[426053188,1782131543000,-500.0,0.00029315,2]
[426053195,1782131543000,-500.0,0.00029315,2]
[426053189,1782131543000,-542.05,0.00029315,2]
[426053185,1782131543000,-500.0,0.00029315,2]
[426053193,1782131543000,-2693.07,0.00029315,2]
[426053192,1782131543000,-500.0,0.00029315,2]
[426053194,1782131543000,-733.03,0.00029315,2]
[426053196,1782131543000,-861.51,0.00029315,2]
[426053199,1782131543000,-500.0,0.00029315,2]
[426053197,1782131543000,-566.57,0.00029315,2]
[426053182,1782131543000,-500.0,0.00029315,2]
[426053186,1782131543000,-512.67,0.00029315,2]
[426053180,1782131543000,-500.0,0.00029315,2]
[426053160,1782131543000,-500.0,0.00029315,2]
[426053181,1782131543000,-500.0,0.00029315,2]
[426053198,1782131543000,-595.22928907,0.00029315,2]
[426053157,1782131543000,-500.0,0.00029315,2]
[426053158,1782131543000,-1075.88,0.00029315,2]
[426053159,1782131543000,-806.98,0.00029315,2]
[426053162,1782131543000,-500.0,0.00029315,2]
[426053161,1782131543000,-500.0,0.00029315,2]
[426053163,1782131543000,-500.0,0.00029315,2]
[426053164,1782131543000,-500.0,0.00029315,2]
[426053166,1782131543000,-500.0,0.00029315,2]
[426053165,1782131543000,-500.0,0.00029315,2]
[426053167,1782131543000,-500.0,0.00029315,2]
[426053168,1782131543000,-3183.96,0.00029315,2]
[426053172,1782131543000,-500.0,0.00029315,2]
[426053171,1782131543000,-500.0,0.00029315,2]
[426053170,1782131543000,-519.81,0.00029315,2]
[426053169,1782131543000,-500.0,0.00029315,2]
[426053174,1782131543000,-500.0,0.00029315,2]
[426053178,1782131543000,-596.6,0.00029315,2]
[426053179,1782131543000,-626.46,0.00029315,2]
[426053173,1782131543000,-500.0,0.00029315,2]
[426053200,1782131543000,-500.0,0.00029315,2]
[426053187,1782131543000,-500.0,0.00029315,2]
[426053202,1782131543000,-1000.0,0.00029315,2]
[426053225,1782131543000,-500.0,0.00029315,2]
[426053227,1782131543000,-500.0,0.00029315,2]
[426053230,1782131543000,-498.29210091,0.00029315,2]
[426053231,1782131543000,-227.95,0.00029315,2]
[426053232,1782131543000,-626.49,0.00029315,2]
[426053228,1782131543000,-1706.4,0.00029315,2]
[426053233,1782131543000,-585.33,0.00029315,2]
[426053235,1782131543000,-500.0,0.00029315,2]
[426053234,1782131543000,-830.91,0.00029315,2]
[426053236,1782131543000,-500.0,0.00029315,2]
[426053239,1782131543000,-500.0,0.00029315,2]
[426053237,1782131543000,-699.61,0.00029315,2]
[426053240,1782131543000,-500.0,0.00029315,2]
[426053243,1782131543000,-500.0,0.00029315,2]
[426053244,1782131543000,-1302.85,0.00029315,2]
[426053241,1782131543000,-617.30418208,0.00029315,2]
[426053242,1782131543000,-604.11,0.00029315,2]
[426053245,1782131543000,-553.22,0.00029315,2]
[426053205,1782131543000,-804.78,0.00029315,2]
[426053229,1782131543000,-1155.68,0.00029315,2]
[426053224,1782131543000,-500.0,0.00029315,2]
[426053238,1782131543000,-1326.5,0.00029315,2]
[426053223,1782131543000,-500.0,0.00029315,2]
[426053204,1782131543000,-500.0,0.00029315,2]
[426053226,1782131543000,-698.47,0.00029315,2]
[426053201,1782131543000,-500.0,0.00029315,2]
[426053203,1782131543000,-500.0,0.00029315,2]
[426053206,1782131543000,-593.89,0.00029315,2]
[426053210,1782131543000,-500.0,0.00029315,2]
[426053207,1782131543000,-490.2,0.00029315,2]
[426053211,1782131543000,-500.0,0.00029315,2]
[426053209,1782131543000,-500.0,0.00029315,2]
[426053213,1782131543000,-500.0,0.00029315,2]
[426053208,1782131543000,-2103.48,0.00029315,2]
[426053220,1782131543000,-500.0,0.00029315,2]
[426053212,1782131543000,-500.0,0.00029315,2]
[426053219,1782131543000,-554.28,0.00029315,2]
[426053214,1782131543000,-500.0,0.00029315,2]
[426053217,1782131543000,-500.0,0.00029315,2]
[426053215,1782131543000,-500.0,0.00029315,2]
[426053218,1782131543000,-500.0,0.00029315,2]
[426053216,1782131543000,-500.0,0.00029315,2]
[426053221,1782131543000,-2746.21,0.00029315,2]
[426053222,1782131543000,-785.53,0.00029315,2]
[426053287,1782131544000,-500.0,0.00029315,2]
[426053288,1782131544000,-569.81473863,0.00029315,2]
[426053285,1782131544000,-6186.73,0.00029315,2]
[426053280,1782131544000,-500.0,0.00029315,2]
[426053282,1782131544000,-500.0,0.00029315,2]
[426053277,1782131544000,-504.85,0.00029315,2]
[426053267,1782131544000,-500.0,0.00029315,2]
[426053274,1782131544000,-500.0,0.00029315,2]
[426053279,1782131544000,-500.0,0.00029315,2]
[426053283,1782131544000,-500.0,0.00029315,2]
[426053278,1782131544000,-500.0,0.00029315,2]